Cogmind - Beta 12 @@@ ROGUE MODE // 2023.04.17 @ 00:44:56 Player: Mr Goldstein Result: Destroyed by S-10 Pest with Light Assault Rifle Performance ------------- Evolutions (1) 500 Regions Visited (6) 1200 Robots Destroyed (2) 10 Value Destroyed (12) 12 Prototype IDs (24) 480 Alien Tech Used (0) 0 Bonus (300) 300 TOTAL SCORE: 2502 Bonus ------- Aligned with FarCom 300 Cogmind --------- Core Integrity 0/400 Matter 300/300 Energy 98/100 System Corruption 0% Temperature Cool (0) Movement Core (50) Location -8/Mines Parts ------- > --- POWER (1) -------- (None) > --- PROPULSION (2) --- (None) > --- UTILITY (4) ------ Experimental Sensor Array > --- WEAPON (2) ------- (None) > --- INVENTORY (5) ---- Firepult Peak State ------------ > --- POWER ------------ (None) > --- PROPULSION ------- (None) > --- UTILITY ---------- Experimental Sensor Array > --- WEAPON ----------- (None) > --- INVENTORY -------- Firepult Signal Generator [Rating: 11] Favorites ----------- Power None Propulsion None Utility Experimental Sensor Array Device Experimental Sensor Array Weapon None Build | -11 -10 -10 -9 -9 -9 -8 ------- Run | Jun Mat Min Mat Min Exi Min Slots Evolved 2 | . . . 2 . . . Power . | . . . . . . . Propulsion . | . . . . . . . Utility 2 | . . . 2 . . . Weapon . | . . . . . . . Parts Attached 1 | . . . . 1 . . Power . | . . . . . . . Engine . | . . . . . . . Core . | . . . . . . . Reactor . | . . . . . . . Propulsion . | . . . . . . . Treads . | . . . . . . . Leg . | . . . . . . . Wheel . | . . . . . . . Hover . | . . . . . . . Flight . | . . . . . . . Utility 1 | . . . . 1 . . Device 1 | . . . . 1 . . Storage . | . . . . . . . Processor . | . . . . . . . Hackware . | . . . . . . . Protection . | . . . . . . . Artifact . | . . . . . . . Weapon . | . . . . . . . Energy Gun . | . . . . . . . Energy Cannon . | . . . . . . . Ballistic Gun . | . . . . . . . Ballistic Cannon . | . . . . . . . Launcher . | . . . . . . . Special Weapon . | . . . . . . . Impact Weapon . | . . . . . . . Slashing Weapon . | . . . . . . . Piercing Weapon . | . . . . . . . Special Melee Weapon . | . . . . . . . Unidentified Prototypes 1 | . . . . 1 . . Parts Lost . | . . . . . . . Power . | . . . . . . . Propulsion . | . . . . . . . Utility . | . . . . . . . Weapon . | . . . . . . . Highest Loss Streak . | . . . . . . . To Critical Strikes . | . . . . . . . Average Slot Usage (%) 3 | . . . . 3 11 11 Device 3 | . . . . 3 11 11 Naked Turns 498 | . 39 174 121 164 . . Heaviest Build 1 | . . . . 1 1 1 Greatest Support 3 | 3 3 3 3 3 3 3 Greatest Overweight (x) . | . . . . . . . Average Overweight (x) . | . . . . . . . Largest Inventory Capacity 5 | 5 5 5 5 5 5 5 Average Capacity 5 | 5 5 5 5 5 5 5 Most Carried 3 | . . . . 1 3 2 Average Carried . | . . . . . 1 2 Final Capacity 5 | 5 5 5 5 5 5 5 Final Carried 2 | . . . . 1 2 2 Class Distribution -------------------- 94% | Mutant 5% | Scout Dominant Class ---------------- Mutant | -10/Materials Mutant | -10/Mines Mutant | -9/Materials Mutant | -9/Mines Mutant | -9/Exiles Scout | -8/Mines Resources | -11 -10 -10 -9 -9 -9 -8 ----------- Run | Jun Mat Min Mat Min Exi Min Matter Collected 177 | . . 137 30 10 . . Remotely . | . . . . . . . Salvage Created 41 | . . 26 15 . . . Parts 12 | . . 5 7 . . . Haulers Intercepted . | . . . . . . . Recyclers Shooed . | . . . . . . . Parts Field Recycled . | . . . . . . . Retrieved Matter . | . . . . . . . Parts Self-Destructed . | . . . . . . . Prevented . | . . . . . . . Kills | -11 -10 -10 -9 -9 -9 -8 ------- Run | Jun Mat Min Mat Min Exi Min Combat Hostiles Destroyed . | . . . . . . . Classes Destroyed 2 | . . 1 1 . . . Builder 1 | . . . 1 . . . Tunneler 1 | . . 1 . . . . Best Kill Streak 1 | . . 1 1 . . . Combat Bots Only . | . . . . . . . Max Kills in Single Turn 1 | . . 1 1 . . . Gunslinging . | . . . . . . . Exploded . | . . . . . . . Melee . | . . . . . . . Uniques/NPCs Destroyed . | . . . . . . . Combat | -11 -10 -10 -9 -9 -9 -8 -------- Run | Jun Mat Min Mat Min Exi Min Damage Taken 486 | . . 73 61 225 . 127 Core 475 | . . 73 61 220 . 121 Absorbed by Shields . | . . . . . . . Core Remaining (%) 85 | 100 . 70 . . . . Volleys Fired . | . . . . . . . Largest . | . . . . . . . Hottest . | . . . . . . . Shots Fired . | . . . . . . . Gun . | . . . . . . . Cannon . | . . . . . . . Launcher . | . . . . . . . Special . | . . . . . . . Kinetic . | . . . . . . . Thermal . | . . . . . . . Explosive . | . . . . . . . Electromagnetic . | . . . . . . . Robot Hit Streak . | . . . . . . . Robot Miss Streak . | . . . . . . . Penetration Max . | . . . . . . . Secondary Targets . | . . . . . . . Shots Hit Robots . | . . . . . . . Core Hits 5 | . . 1 3 1 . . Critical Kills . | . . . . . . . Critical Parts Destroyed . | . . . . . . . Critical Strikes . | . . . . . . . Melee Attacks . | . . . . . . . Impact . | . . . . . . . Slashing . | . . . . . . . Piercing . | . . . . . . . Sneak Attacks . | . . . . . . . Combat Hostiles . | . . . . . . . Follow-up Attacks . | . . . . . . . Damage Inflicted 121 | . . 23 41 57 . . Guns . | . . . . . . . Cannons . | . . . . . . . Explosions . | . . . . . . . Melee . | . . . . . . . Ramming 121 | . . 23 41 57 . . Kinetic . | . . . . . . . Thermal . | . . . . . . . Explosive . | . . . . . . . Electromagnetic . | . . . . . . . Impact . | . . . . . . . Slashing . | . . . . . . . Piercing . | . . . . . . . Highest Corruption . | . . . . . . . Average Corruption . | . . . . . . . Corruption Purged . | . . . . . . . Corruption Blocked . | . . . . . . . Overload Shots . | . . . . . . . Overflow Damage . | . . . . . . . Projectiles . | . . . . . . . Explosions . | . . . . . . . Melee . | . . . . . . . Knockbacks 1 | . . . . 1 . . Impact 1 | . . . . 1 . . Kinetic . | . . . . . . . Secondary . | . . . . . . . Self-Inflicted Damage 57 | . . 10 20 27 . . Shots . | . . . . . . . Rammed 21 | . . 4 7 10 . . Targets Rammed 21 | . . 4 7 10 . . Kicked . | . . . . . . . Crushed . | . . . . . . . Highest Temperature . | . . . . . . . Average Temperature . | . . . . . . . Received Heat Transfer 6 | . . . 6 . . . Siege Activations . | . . . . . . . Robots Corrupted . | . . . . . . . Combat Hostiles . | . . . . . . . Parts Fried . | . . . . . . . Impact Corruptions . | . . . . . . . Robots Melted . | . . . . . . . Combat Hostiles . | . . . . . . . Parts Melted . | . . . . . . . Heat Transferred . | . . . . . . . Parts Sabotaged . | . . . . . . . Parts Stolen . | . . . . . . . Parts Stripped . | . . . . . . . Power Chain Reactions . | . . . . . . . Missiles Intercepted . | . . . . . . . Alert | -11 -10 -10 -9 -9 -9 -8 ------- Run | Jun Mat Min Mat Min Exi Min Peak Influence 118 | . . 5 111 118 . . Initial 43 | . . . 1 43 . . Average 45 | . . 2 53 90 . . Maximum Alert Level . | . . . . . . . Low Security (%) 100 | 100 100 100 100 100 . 100 Level 1 . | . . . . . . . Level 2 . | . . . . . . . Level 3 . | . . . . . . . Level 4 . | . . . . . . . Level 5 . | . . . . . . . High Security . | . . . . . . . Max Security . | . . . . . . . Squads Dispatched 2 | . . . 2 . . . Investigation . | . . . . . . . Extermination . | . . . . . . . Reinforcement 2 | . . . 2 . . . Assault . | . . . . . . . Garrison . | . . . . . . . Intercept . | . . . . . . . Searches Triggered . | . . . . . . . Construction Impeded . | . . . . . . . Haulers Reinforced . | . . . . . . . Active Scanning Responses . | . . . . . . . Cargo Convoy Interrupts . | . . . . . . . Stealth | -11 -10 -10 -9 -9 -9 -8 --------- Run | Jun Mat Min Mat Min Exi Min Distress Signals 2 | . . . 2 . . . Communications Jammed . | . . . . . . . Distress Signals . | . . . . . . . Times Spotted 45 | . 1 23 9 7 . 5 Peak Tracking Total 19 | . 1 19 7 5 . 4 Tactical Retreats 6 | . . 1 2 2 . 1 Traps | -11 -10 -10 -9 -9 -9 -8 ------- Run | Jun Mat Min Mat Min Exi Min Traps Triggered . | . . . . . . . Indirectly . | . . . . . . . Trap Hack Attempts . | . . . . . . . Triggered . | . . . . . . . Disarmed . | . . . . . . . Reprogrammed . | . . . . . . . Reused . | . . . . . . . Traps Extracted . | . . . . . . . Installed . | . . . . . . . Triggered . | . . . . . . . Machines | -11 -10 -10 -9 -9 -9 -8 ---------- Run | Jun Mat Min Mat Min Exi Min Machines Disabled . | . . . . . . . Max in Single Turn . | . . . . . . . Machines Repaired . | . . . . . . . Machines Sabotaged . | . . . . . . . Overloaded Fab Kills . | . . . . . . . Hacking | -11 -10 -10 -9 -9 -9 -8 --------- Run | Jun Mat Min Mat Min Exi Min Machines Accessed 1 | . . . . . 1 . Terminals . | . . . . . . . Fabricators . | . . . . . . . Repair Stations . | . . . . . . . Recycling Units . | . . . . . . . Scanalyzers . | . . . . . . . Garrison Access . | . . . . . . . Total Hacks 1 | . . . . . 1 . Successful 1 | . . . . . 1 . Failed . | . . . . . . . Catastrophic . | . . . . . . . Database Lockouts . | . . . . . . . Manual 1 | . . . . . 1 . Terminals . | . . . . . . . Fabricators . | . . . . . . . Repair Stations . | . . . . . . . Recycling Units . | . . . . . . . Scanalyzers . | . . . . . . . Garrison Access . | . . . . . . . Terminal Hacks 1 | . . . . . 1 . EX-Prototype ID Bank 1 | . . . . . 1 . Fabricator Hacks . | . . . . . . . Repair Station Hacks . | . . . . . . . Recycling Unit Hacks . | . . . . . . . Scanalyzer . | . . . . . . . Garrison Access Hacks . | . . . . . . . Unauthorized Hacks . | . . . . . . . Terminals . | . . . . . . . Fabricators . | . . . . . . . Repair Stations . | . . . . . . . Recycling Units . | . . . . . . . Scanalyzers . | . . . . . . . Garrison Access . | . . . . . . . Data Cores Recovered . | . . . . . . . Used . | . . . . . . . Hacking Detections . | . . . . . . . Full Trace Events . | . . . . . . . Feedback Events . | . . . . . . . Feedback Blocked . | . . . . . . . Robot Schematics Acquired . | . . . . . . . Robots Built . | . . . . . . . Authchips . | . . . . . . . Time . | . . . . . . . Total Robot Build Rating . | . . . . . . . Part Schematics Acquired . | . . . . . . . Parts Built . | . . . . . . . Authchips . | . . . . . . . Time . | . . . . . . . Total Part Build Rating . | . . . . . . . Parts Repaired . | . . . . . . . Time . | . . . . . . . Parts Recycled . | . . . . . . . Recycled Matter . | . . . . . . . Retrieved Matter . | . . . . . . . Retrieved Components . | . . . . . . . Parts Scanalyzed . | . . . . . . . Part Schematics Acquired . | . . . . . . . Parts Damaged . | . . . . . . . Bothacking | -11 -10 -10 -9 -9 -9 -8 ------------ Run | Jun Mat Min Mat Min Exi Min Used RIF Installer . | . . . . . . . Robots Hacked . | . . . . . . . Non-combat . | . . . . . . . Combat . | . . . . . . . Robot Hacks Applied . | . . . . . . . Relay Couplers Released . | . . . . . . . Fabnet Peak Effective % . | . . . . . . . Robots Rewired . | . . . . . . . Allies Hacked . | . . . . . . . Hacks Repelled . | . . . . . . . Allies | -11 -10 -10 -9 -9 -9 -8 -------- Run | Jun Mat Min Mat Min Exi Min Total Allies . | . . . . . . . Largest Group . | . . . . . . . Highest-Rated Group . | . . . . . . . Highest-Rated Ally . | . . . . . . . Total Orders . | . . . . . . . Ally Attacks . | . . . . . . . Total Damage . | . . . . . . . Kills . | . . . . . . . Allies Corrupted . | . . . . . . . Allies Melted . | . . . . . . . Intel | -11 -10 -10 -9 -9 -9 -8 ------- Run | Jun Mat Min Mat Min Exi Min Robot Analysis Total . | . . . . . . . Derelict Logs Recovered 1 | . . . . 1 . . Drone Launches . | . . . . . . . Drone Recoveries . | . . . . . . . Exploration | -11 -10 -10 -9 -9 -9 -8 ------------- Run | Jun Mat Min Mat Min Exi Min Turns Passed 730 | 9 39 174 121 229 128 30 Spaces Moved 1366 | 18 77 339 228 430 214 60 Core 1366 | 18 77 339 228 430 214 60 Treads . | . . . . . . . Legs . | . . . . . . . Wheels . | . . . . . . . Hover . | . . . . . . . Flight . | . . . . . . . Fastest Speed 50 | 50 50 50 50 50 50 50 Average Speed 50 | 50 50 50 50 50 50 50 Slowest Speed 50 | 50 50 50 50 50 50 50 Overloaded Moves . | . . . . . . . Propulsion Burnouts . | . . . . . . . Robots Hopped . | . . . . . . . Cave-ins Triggered . | . . . . . . . Exploration Rate (%) 43 | 3 21 72 32 91 61 27 Regions Visited 6 Branch Regions 4 Pre-discovered Areas 1 | . . 1 . . . . Known Exits Taken . | . . . . . . . Unknown Exits Taken 6 | 1 1 1 1 1 1 . Scrap Searched 3 | . . 1 . 2 . . Spaces Dug . | . . . . . . . Terrain Destroyed . | . . . . . . . Melee . | . . . . . . . Projectile . | . . . . . . . AOE . | . . . . . . . Terrain Rammed . | . . . . . . . Walls Destroyed . | . . . . . . . Machines Disabled . | . . . . . . . Actions | -11 -10 -10 -9 -9 -9 -8 --------- Run | Jun Mat Min Mat Min Exi Min Total 1405 | 17 76 342 234 442 234 60 Wait 20 | . . . . 1 19 . Move 1360 | 17 76 338 227 429 213 60 Hop . | . . . . . . . Pick Up 2 | . . . . 1 1 . Fast Attach 1 | . . . . 1 . . Attach . | . . . . . . . Detach . | . . . . . . . Swap . | . . . . . . . Drop 1 | . . . . . 1 . Fire . | . . . . . . . Melee . | . . . . . . . Ram 21 | . . 4 7 10 . . Kick . | . . . . . . . Crush . | . . . . . . . Escape Stasis . | . . . . . . . Rewire . | . . . . . . . Trap . | . . . . . . . Miscellaneous . | . . . . . . . Route ------- -11/Junkyard -10/Materials (discovered 2 exits: [*Mat] / [*Min]) -10/Mines (discovered 2 exits: [*Mat x2]) -9/Materials (discovered 3 exits: [*Mat] / [*Min] / [*Sto]) -9/Mines (discovered 3 exits: [*Mat x2] / *Exi) -9/Exiles -8/Mines History --------- Turn | Location | Event 3 | -11/Junkyard | Discovered new exit (range 15) 10 | -11/Junkyard | Entered Materials 29 | -10/Materials | Discovered new exit (range 16) 41 | -10/Materials | Discovered new exit (range 16) 49 | -10/Materials | Entered Mines 106 | -10/Mines | Discovered new exit (range 8) 107 | -10/Mines | Learned location of Storage (-9) 140 | -10/Mines | Discovered new exit (range 6) 184 | -10/Mines | Assembled infested the area 223 | -10/Mines | Entered Materials 223 | -9/Materials | Evolved 2 slots: Utility x2 253 | -9/Materials | Discovered new exit (range 12) 300 | -9/Materials | Discovered new exit (range 15) 305 | -9/Materials | Build established: Mutant 334 | -9/Materials | Met 8R-AWN 342 | -9/Materials | Discovered new exit (range 6) 344 | -9/Materials | Entered Mines 367 | -9/Mines | Discovered new exit (range 7) 374 | -9/Mines | Core integrity fell below 50% 380 | -9/Mines | Joined a pair of Derelicts in attacking an 0b10 outpost 406 | -9/Mines | Met a Derelict testing a Signal Generator 407 | -9/Mines | Found Signal Generator 444 | -9/Mines | Discovered new exit (range 8) 480 | -9/Mines | Received a Rocket Launcher from a helpful Derelict 507 | -9/Mines | Found a damaged Exp. Sensor Array with a note attached 508 | -9/Mines | Found Prototype Device 508 | -9/Mines | Identified Exp. Sensor Array 543 | -9/Mines | Learned 4 Materials zone layouts 571 | -9/Mines | Deemed a non-threat by the Exiles lab entrance 571 | -9/Mines | Discovered new exit (range 5) 573 | -9/Mines | Entered Exiles 586 | -9/Exiles | Welcomed by 8R-AWN 593 | -9/Exiles | Met EX-HEX 610 | -9/Exiles | Met EX-BIN 616 | -9/Exiles | Aligned with FarCom system 617 | -9/Exiles | Given EX-Vault access code 629 | -9/Exiles | Opened EX-Vault 632 | -9/Exiles | Found Firepult 644 | -9/Exiles | Warned to stay clear of 0b10 Research branches 679 | -9/Exiles | Met EX-DEC 697 | -9/Exiles | Discovered new exit (range 10) 701 | -9/Exiles | Left Exiles lab with Firepult 701 | -9/Exiles | Entered Mines 704 | -8/Mines | Core integrity fell below 20% 731 | -8/Mines | Destroyed by S-10 Pest with Light Assault Rifle Last Messages --------------- Longsword +1 Deploy-a-Sentry 00632_ Acquired Firepult. EX-BIN: Oh yeah, I'd suggest you stay away from the 0b10 Research branches, since the FarCom signals could be picked up there, but you're welcome to try if you really want to. And if we have to leave here due to unforeseen circumstances, don't worry the FarCom system will continue to maintain contact via our distributed network. 00648_ Dropped Signal Generator. EX-BIN: And don't even think about spreading that code around. We're gonna change it right after you leave. Most certainly not to something like 1234 which I did last time as a little joke and some thief managed to sneak in here and steal a few of HEX's prototypes. EX-DEC: Ah I see we have a visitor. One wrong move in here and I'll invert your atomic chain! 00681_ EX-DEC: "Oops, I hope HEX didn't hear that..." 00697_ EXIT=FOUND LOCATION=UNKNOWN GOAL=ESCAPE 00701_ Receiving FarCom transmissions... Map ----- +----------------------------------------------------+ | | | | | | | | | | | | | ??????????????????????????????????????? | | ??????????????????????????????????????? | | ??????????????????????????????????????? | | ??????????????????????????????????????? | | ??????????????????????????????????????? | | ?????????????##????####???????????????? | | ????????????## ???## ##??????????????? | | ????????????# #?## #??????????????? | | ????????????# ## #??????????????? | | ????????????# #??????????????? | | ????????????# ######?????????? | | ?????????????# ##????????? | | ??????????????# ####?????? | | ???????????????# #?????? | | ?????????####?## ## #?????? | | ????????## ### ##?????????????? | | ????????# ##?????????????? | | ????????# #####?????????? | | ????????## ss ##????????? | | ????????## ###### @ #????????? | | ????????# ss#????## #???? | | ???????## ####??## ## #???? | | ??????## ###?#####?#### #??? | | ??# ### #???????????? #?? | | ??# #????????????# #?? | | ??##### ## #????????????? #? | | ??????# ##?# #????????????? #? | | ??????# ##???# ??????????????? | | ??????# #?????# ?????????????? | | ?????## #??????# ?????????????? | | ????## ##??????? ??????????????? | | ????# ##???????? ???????????????? | | ????# #####????? ???????????????? | | ????# ##?????????????????????? | | ????## #?????????????????????? | | ?????## ## #?????????????????????? | | ??????# ##?# #?????????????????????? | | ?????## ##??###?????????????????????? | | ????## #??????????????????????????? | | ????# ######?????????????????????? | | ????# #??????????????? | | ????## #######?????????????????????? | | ?????#### #???????????????????????????? | | ????????# #???????????????????????????? | +----------------------------------------------------+ Best States ------------- Heat Dissipation 28 Energy Generation 5 Energy Capacity 100 Matter Stores 300 Matter Capacity 300 Sight Range 16 Robot Scan Range 20 Terrain Scan Density 10 Evasion (%) 50 Item Schematics ----------------- None Robot Schematics ------------------ None Fabricated ------------ Nothing Alien Tech Used ----------------- None Achievements -------------- None Challenges ------------ None Game ------ Seed MiningStealthBiocell Manual? 0 Play Time 00:06:55 Cumulative 116.8 hours Start 2023.04.17 @ 00:38:16 End 2023.04.17 @ 00:44:56 Sessions 1 Manual Loads 0 Difficulty Rogue Special Mode None Game No. 323 Rogue 323 Adventurer 0 Explorer 0 Win Type - Total 4 Types 4/0/0/0/0/0/0/0/0 Lore% 58 Gallery% 60 Achievement% 53 Wizard Run 0 Options --------- ASCII 0 Keyboard 0 Movement Numpad Keybinds 0 Fullscreen 1 Font 12/Smallcaps Map View 83x54 Tactical HUD 1 Map Filters NONE Filters NONE Steam 1 RUN: 19f4279b-d752-404e-b0bd-93effdbd1ea6